[Event "Titled Tuesday Blitz June 27 Late 2023"]
[White "Pinero Rodriguez, Carlos Jose"]
[Black "Andrejic, Vladica"]
[WhiteFideId "3901726"]
[BlackFideId "928178"]
[WhiteElo "2369"]
[BlackElo "2134"]
[Result "0-1"]
[Round "3"]
[TimeControl "180+2"]
[Date "2023.06.27"]
[WhiteClock "0:01:19"]
[BlackClock "0:00:42"]
[Board "171"]

1. b3 {[%clk 0:02:53]}  d5 {[%clk 0:02:59]} 2. Bb2 {[%clk 0:02:49]}  Nc6 {[%clk 0:02:59]} 3. Nf3 {[%clk 0:02:50]}  Bf5 {[%clk 0:02:57]} 4. e3 {[%clk 0:02:50]}  e6 {[%clk 0:02:57]} 5. Bd3 {[%clk 0:02:50]}  Bxd3 {[%clk 0:02:57]} 6. cxd3 {[%clk 0:02:51]}  Nf6 {[%clk 0:02:56]} 7. O-O {[%clk 0:02:52]}  Be7 {[%clk 0:02:56]} 8. d4 {[%clk 0:02:53]}  O-O {[%clk 0:02:55]} 9. a3 {[%clk 0:02:54]}  h6 {[%clk 0:02:55]} 10. d3 {[%clk 0:02:53]}  Re8 {[%clk 0:02:52]} 11. Nbd2 {[%clk 0:02:54]}  Bf8 {[%clk 0:02:53]} 12. Rc1 {[%clk 0:02:54]}  Nd7 {[%clk 0:02:44]} 13. b4 {[%clk 0:02:54]}  a6 {[%clk 0:02:41]} 14. Ne5 {[%clk 0:02:51]}  Ncxe5 {[%clk 0:02:32]} 15. dxe5 {[%clk 0:02:52]}  c5 {[%clk 0:02:31]} 16. bxc5 {[%clk 0:02:50]}  Bxc5 {[%clk 0:02:29]} 17. d4 {[%clk 0:02:51]}  Ba7 {[%clk 0:02:27]} 18. Qb3 {[%clk 0:02:49]}  b5 {[%clk 0:02:27]} 19. a4 {[%clk 0:02:49]}  Rb8 {[%clk 0:02:26]} 20. axb5 {[%clk 0:02:49]}  axb5 {[%clk 0:02:26]} 21. f4 {[%clk 0:02:36]}  Nb6 {[%clk 0:02:20]} 22. Ra1 {[%clk 0:02:31]}  Qd7 {[%clk 0:02:16]} 23. f5 {[%clk 0:02:24]}  Nc4 {[%clk 0:02:15]} 24. Bc1 {[%clk 0:02:21]}  exf5 {[%clk 0:02:08]} 25. Qd3 {[%clk 0:02:18]}  g6 {[%clk 0:02:06]} 26. g4 {[%clk 0:02:11]}  fxg4 {[%clk 0:02:05]} 27. Rf4 {[%clk 0:02:02]}  Bb6 {[%clk 0:01:58]} 28. Nf1 {[%clk 0:02:00]}  Ra8 {[%clk 0:01:46]} 29. Rb1 {[%clk 0:02:00]}  Ra2 {[%clk 0:01:46]} 30. Ng3 {[%clk 0:01:57]}  Rea8 {[%clk 0:01:37]} 31. Kh1 {[%clk 0:01:49]}  h5 {[%clk 0:01:23]} 32. e4 {[%clk 0:01:49]}  Ra1 {[%clk 0:01:05]} 33. h4 {[%clk 0:01:34]}  Rxb1 {[%clk 0:01:05]} 34. Qxb1 {[%clk 0:01:34]}  Bxd4 {[%clk 0:01:05]} 35. exd5 {[%clk 0:01:33]}  Qxd5+ {[%clk 0:01:04]} 36. Kh2 {[%clk 0:01:33]}  Bxe5 {[%clk 0:01:01]} 37. Rf2 {[%clk 0:01:30]}  Nd6 {[%clk 0:00:45]} 38. Bf4 {[%clk 0:01:22]}  Bxf4 {[%clk 0:00:42]} 39. Rxf4 {[%clk 0:01:19]}  Ra2+ {[%clk 0:00:42]} 0-1


[Site "https://www.chess.com"]

[Event "Titled Tuesday Blitz June 27 Late 2023"]
[White "Castella Garcia, Fausto"]
[Black "Ishowmoves57"]
[WhiteFideId "3501922"]
[WhiteElo "2351"]
[BlackElo "2097"]
[Result "1-0"]
[Round "3"]
[TimeControl "180+2"]
[Date "2023.06.27"]
[WhiteClock "0:01:18"]
[BlackClock "0:01:14"]
[Board "175"]

1. e4 {[%clk 0:01:55]}  c5 {[%clk 0:02:58]} 2. Nf3 {[%clk 0:01:55]}  Nc6 {[%clk 0:02:58]} 3. Bb5 {[%clk 0:01:54]}  g6 {[%clk 0:02:57]} 4. c3 {[%clk 0:01:53]}  Bg7 {[%clk 0:02:52]} 5. d4 {[%clk 0:01:53]}  cxd4 {[%clk 0:02:46]} 6. cxd4 {[%clk 0:01:54]}  d5 {[%clk 0:02:46]} 7. exd5 {[%clk 0:01:54]}  Qxd5 {[%clk 0:02:36]} 8. Nc3 {[%clk 0:01:52]}  Qe6+ {[%clk 0:02:18]} 9. Be3 {[%clk 0:01:51]}  a6 {[%clk 0:02:12]} 10. d5 {[%clk 0:01:50]}  Qd6 {[%clk 0:02:02]} 11. Ba4 {[%clk 0:01:42]}  b5 {[%clk 0:01:41]} 12. dxc6 {[%clk 0:01:37]}  bxa4 {[%clk 0:01:33]} 13. Qxd6 {[%clk 0:01:31]}  exd6 {[%clk 0:01:33]} 14. Nxa4 {[%clk 0:01:31]}  Be6 {[%clk 0:01:20]} 15. Nb6 {[%clk 0:01:23]}  Rb8 {[%clk 0:01:14]} 16. c7 {[%clk 0:01:21]}  Rb7 {[%clk 0:01:14]} 17. c8=Q+ {[%clk 0:01:18]}  Bxc8 {[%clk 0:01:14]} 18. Nxc8 {[%clk 0:01:18]}  Bxb2 {[%clk 0:01:15]} 19. Nxd6+ {[%clk 0:01:18]}  Ke7 {[%clk 0:01:14]} 20. Nxb7 {[%clk 0:01:18]} 1-0


[Site "https://www.chess.com"]

[Event "Titled Tuesday Blitz June 27 Late 2023"]
[White "GAO"]
[Black "Sloan, Julia Elizabeth"]
[BlackFideId "2018950"]
[WhiteElo "2346"]
[BlackElo "2084"]
[Result "1-0"]
[Round "3"]
[TimeControl "180+2"]
[Date "2023.06.27"]
[WhiteClock "0:00:16"]
[BlackClock "0:01:14"]
[Board "178"]

1. Nf3 {[%clk 0:02:56]}  g6 {[%clk 0:02:58]} 2. h4 {[%clk 0:02:55]}  h5 {[%clk 0:02:57]} 3. e4 {[%clk 0:02:54]}  Bg7 {[%clk 0:02:57]} 4. d4 {[%clk 0:02:54]}  c5 {[%clk 0:02:56]} 5. d5 {[%clk 0:02:52]}  d6 {[%clk 0:02:54]} 6. c4 {[%clk 0:02:52]}  Bg4 {[%clk 0:02:53]} 7. Be2 {[%clk 0:02:50]}  Nd7 {[%clk 0:02:53]} 8. Nc3 {[%clk 0:02:45]}  Bxc3+ {[%clk 0:02:52]} 9. bxc3 {[%clk 0:02:46]}  Ngf6 {[%clk 0:02:50]} 10. Qc2 {[%clk 0:02:43]}  Qa5 {[%clk 0:02:48]} 11. O-O {[%clk 0:02:41]}  O-O-O {[%clk 0:02:46]} 12. Rb1 {[%clk 0:02:34]}  Nb6 {[%clk 0:02:41]} 13. Bg5 {[%clk 0:02:20]}  Qa4 {[%clk 0:02:38]} 14. Rb3 {[%clk 0:01:56]}  Nxc4 {[%clk 0:02:35]} 15. Bxc4 {[%clk 0:01:54]}  Qxc4 {[%clk 0:02:34]} 16. Nd2 {[%clk 0:01:42]}  Qa4 {[%clk 0:02:26]} 17. Bxf6 {[%clk 0:01:30]}  exf6 {[%clk 0:02:24]} 18. Rfb1 {[%clk 0:01:29]}  b6 {[%clk 0:02:22]} 19. Qb2 {[%clk 0:01:25]}  Be2 {[%clk 0:02:15]} 20. Ra3 {[%clk 0:01:20]}  Qd7 {[%clk 0:02:13]} 21. f3 {[%clk 0:01:17]}  Bd3 {[%clk 0:02:11]} 22. Rc1 {[%clk 0:01:13]}  f5 {[%clk 0:02:11]} 23. c4 {[%clk 0:00:51]}  fxe4 {[%clk 0:02:08]} 24. fxe4 {[%clk 0:00:41]}  Be2 {[%clk 0:02:08]} 25. Re1 {[%clk 0:00:32]}  Bg4 {[%clk 0:02:07]} 26. e5 {[%clk 0:00:31]}  Rhe8 {[%clk 0:02:04]} 27. Ree3 {[%clk 0:00:22]}  dxe5 {[%clk 0:02:03]} 28. Rxe5 {[%clk 0:00:22]}  Rxe5 {[%clk 0:02:03]} 29. Qxe5 {[%clk 0:00:23]}  Kb7 {[%clk 0:02:00]} 30. Ne4 {[%clk 0:00:23]}  Re8 {[%clk 0:01:59]} 31. Nd6+ {[%clk 0:00:22]}  Kc7 {[%clk 0:01:46]} 32. Nxe8+ {[%clk 0:00:21]}  Kd8 {[%clk 0:01:46]} 33. Nd6 {[%clk 0:00:21]}  Qe7 {[%clk 0:01:39]} 34. Qxe7+ {[%clk 0:00:19]}  Kxe7 {[%clk 0:01:39]} 35. Nb5 {[%clk 0:00:20]}  a5 {[%clk 0:01:38]} 36. Na7 {[%clk 0:00:20]}  Kd6 {[%clk 0:01:37]} 37. Nc8+ {[%clk 0:00:20]}  Kc7 {[%clk 0:01:37]} 38. Ne7 {[%clk 0:00:20]}  Be2 {[%clk 0:01:35]} 39. Rc3 {[%clk 0:00:19]}  Kd6 {[%clk 0:01:32]} 40. Ng8 {[%clk 0:00:19]}  b5 {[%clk 0:01:30]} 41. cxb5 {[%clk 0:00:17]}  Bxb5 {[%clk 0:01:26]} 42. Nf6 {[%clk 0:00:17]}  a4 {[%clk 0:01:25]} 43. Ne4+ {[%clk 0:00:13]}  Kxd5 {[%clk 0:01:25]} 44. Rxc5+ {[%clk 0:00:14]}  Kxe4 {[%clk 0:01:25]} 45. Rxb5 {[%clk 0:00:14]}  Kd3 {[%clk 0:01:25]} 46. Rb4 {[%clk 0:00:14]}  Kc3 {[%clk 0:01:25]} 47. Rxa4 {[%clk 0:00:15]}  Kb2 {[%clk 0:01:26]} 48. Ra7 {[%clk 0:00:15]}  f6 {[%clk 0:01:23]} 49. a4 {[%clk 0:00:15]}  g5 {[%clk 0:01:23]} 50. a5 {[%clk 0:00:16]}  gxh4 {[%clk 0:01:22]} 51. Rb7+ {[%clk 0:00:16]}  Kc3 {[%clk 0:01:19]} 52. a6 {[%clk 0:00:17]}  f5 {[%clk 0:01:18]} 53. a7 {[%clk 0:00:17]}  f4 {[%clk 0:01:18]} 54. a8=Q {[%clk 0:00:17]}  f3 {[%clk 0:01:16]} 55. Rd7 {[%clk 0:00:17]}  fxg2 {[%clk 0:01:14]} 56. Qc6+ {[%clk 0:00:16]}  Kb4 {[%clk 0:01:14]} 57. Rb7+ {[%clk 0:00:17]}  Ka3 {[%clk 0:01:14]} 58. Qa6# {[%clk 0:00:16]} 1-0


[Site "https://www.chess.com"]

[Event "Titled Tuesday Blitz June 27 Late 2023"]
[White "Bongo Akanga Ndjila, Barthelemy"]
[Black "Muhammed, Shuaau"]
[WhiteFideId "10609431"]
[BlackFideId "16700406"]
[WhiteElo "2078"]
[BlackElo "2343"]
[Result "0-1"]
[Round "3"]
[TimeControl "180+2"]
[Date "2023.06.27"]
[WhiteClock "0:00:01"]
[BlackClock "0:01:32"]
[Board "179"]

1. d4 {[%clk 0:01:52]}  d6 {[%clk 0:02:58]} 2. c4 {[%clk 0:01:50]}  Nf6 {[%clk 0:02:57]} 3. Nc3 {[%clk 0:01:44]}  g6 {[%clk 0:02:58]} 4. e4 {[%clk 0:01:43]}  Bg7 {[%clk 0:02:58]} 5. Be2 {[%clk 0:01:41]}  O-O {[%clk 0:02:59]} 6. Nf3 {[%clk 0:01:41]}  e5 {[%clk 0:02:59]} 7. d5 {[%clk 0:01:37]}  a5 {[%clk 0:02:58]} 8. O-O {[%clk 0:01:35]}  Nbd7 {[%clk 0:02:58]} 9. Bg5 {[%clk 0:01:28]}  h6 {[%clk 0:02:58]} 10. Be3 {[%clk 0:01:22]}  Ng4 {[%clk 0:02:57]} 11. Bc1 {[%clk 0:01:20]}  f5 {[%clk 0:02:57]} 12. exf5 {[%clk 0:01:18]}  gxf5 {[%clk 0:02:56]} 13. Nd2 {[%clk 0:01:06]}  Ngf6 {[%clk 0:02:55]} 14. f4 {[%clk 0:01:07]}  e4 {[%clk 0:02:54]} 15. Nb3 {[%clk 0:01:05]}  b6 {[%clk 0:02:48]} 16. Be3 {[%clk 0:01:04]}  Nc5 {[%clk 0:02:43]} 17. Nd4 {[%clk 0:01:03]}  Bd7 {[%clk 0:02:42]} 18. Rc1 {[%clk 0:00:58]}  Kh7 {[%clk 0:02:40]} 19. Kh1 {[%clk 0:00:52]}  Qe8 {[%clk 0:02:37]} 20. Ndb5 {[%clk 0:00:46]}  Rc8 {[%clk 0:02:31]} 21. Na7 {[%clk 0:00:33]}  Rd8 {[%clk 0:02:31]} 22. Nab5 {[%clk 0:00:31]}  Bxb5 {[%clk 0:02:31]} 23. Nxb5 {[%clk 0:00:17]}  Rd7 {[%clk 0:02:31]} 24. Na7 {[%clk 0:00:15]}  h5 {[%clk 0:02:28]} 25. Nc6 {[%clk 0:00:14]}  Rg8 {[%clk 0:02:26]} 26. b3 {[%clk 0:00:14]}  Bh6 {[%clk 0:02:26]} 27. a3 {[%clk 0:00:13]}  Qg6 {[%clk 0:02:12]} 28. Rg1 {[%clk 0:00:12]}  Ng4 {[%clk 0:02:12]} 29. Bxg4 {[%clk 0:00:10]}  hxg4 {[%clk 0:02:07]} 30. g3 {[%clk 0:00:10]}  Bg7 {[%clk 0:02:01]} 31. b4 {[%clk 0:00:10]}  axb4 {[%clk 0:02:01]} 32. axb4 {[%clk 0:00:10]}  Nd3 {[%clk 0:02:01]} 33. Ra1 {[%clk 0:00:10]}  Bxa1 {[%clk 0:02:00]} 34. Qxa1 {[%clk 0:00:09]}  Qg7 {[%clk 0:01:56]} 35. Nd4 {[%clk 0:00:09]}  Kg6 {[%clk 0:01:53]} 36. Ne6 {[%clk 0:00:09]}  Qxa1 {[%clk 0:01:52]} 37. Rxa1 {[%clk 0:00:10]}  Rh7 {[%clk 0:01:50]} 38. Kg2 {[%clk 0:00:09]}  Nxb4 {[%clk 0:01:49]} 39. Ra7 {[%clk 0:00:08]}  Rgh8 {[%clk 0:01:47]} 40. Rxc7 {[%clk 0:00:03]}  Rxh2+ {[%clk 0:01:47]} 41. Kf1 {[%clk 0:00:03]}  R8h3 {[%clk 0:01:36]} 42. Bf2 {[%clk 0:00:02]}  Nd3 {[%clk 0:01:34]} 43. Ke2 {[%clk 0:00:03]}  Rxf2+ {[%clk 0:01:33]} 44. Kd1 {[%clk 0:00:01]}  Rh1# {[%clk 0:01:32]} 0-1


[Site "https://www.chess.com"]

[Event "Titled Tuesday Blitz June 27 Late 2023"]
[White "Fajdetic, Hrvoje"]
[Black "Alberto, Manuel"]
[WhiteFideId "14501945"]
[BlackFideId "10100148"]
[WhiteElo "2318"]
[BlackElo "2006"]
[Result "1-0"]
[Round "3"]
[TimeControl "180+2"]
[Date "2023.06.27"]
[WhiteClock "0:00:02"]
[BlackClock "0:00:11"]
[Board "182"]

1. b3 {[%clk 0:03:00]}  Nf6 {[%clk 0:02:58]} 2. Bb2 {[%clk 0:02:59]}  e6 {[%clk 0:02:53]} 3. f4 {[%clk 0:02:58]}  d5 {[%clk 0:02:53]} 4. Nf3 {[%clk 0:02:58]}  c5 {[%clk 0:02:45]} 5. e3 {[%clk 0:02:58]}  a6 {[%clk 0:02:45]} 6. Be2 {[%clk 0:02:56]}  Nc6 {[%clk 0:02:41]} 7. O-O {[%clk 0:02:55]}  b5 {[%clk 0:02:37]} 8. a4 {[%clk 0:02:53]}  b4 {[%clk 0:02:36]} 9. d3 {[%clk 0:02:48]}  Bb7 {[%clk 0:02:36]} 10. Qe1 {[%clk 0:02:47]}  Be7 {[%clk 0:02:35]} 11. Qg3 {[%clk 0:02:41]}  O-O {[%clk 0:02:35]} 12. Nbd2 {[%clk 0:02:32]}  Ne8 {[%clk 0:02:35]} 13. Ne5 {[%clk 0:02:13]}  Bf6 {[%clk 0:02:33]} 14. Ndf3 {[%clk 0:02:05]}  Nd6 {[%clk 0:02:31]} 15. Nxc6 {[%clk 0:01:52]}  Bxc6 {[%clk 0:02:29]} 16. Ne5 {[%clk 0:01:52]}  Bb7 {[%clk 0:02:28]} 17. Qh3 {[%clk 0:01:12]}  Rc8 {[%clk 0:02:24]} 18. Rab1 {[%clk 0:00:57]}  g6 {[%clk 0:02:14]} 19. g4 {[%clk 0:00:48]}  Bg7 {[%clk 0:02:13]} 20. g5 {[%clk 0:00:48]}  Nf5 {[%clk 0:02:09]} 21. Bg4 {[%clk 0:00:44]}  Re8 {[%clk 0:01:54]} 22. Bxf5 {[%clk 0:00:38]}  exf5 {[%clk 0:01:53]} 23. Qg3 {[%clk 0:00:36]}  Qb6 {[%clk 0:01:45]} 24. h4 {[%clk 0:00:33]}  Qc7 {[%clk 0:00:59]} 25. h5 {[%clk 0:00:30]}  a5 {[%clk 0:00:56]} 26. Rf2 {[%clk 0:00:29]}  Ba6 {[%clk 0:00:55]} 27. hxg6 {[%clk 0:00:26]}  hxg6 {[%clk 0:00:51]} 28. Rh2 {[%clk 0:00:26]}  c4 {[%clk 0:00:50]} 29. Bd4 {[%clk 0:00:21]}  cxb3 {[%clk 0:00:44]} 30. cxb3 {[%clk 0:00:20]}  Qd6 {[%clk 0:00:37]} 31. Qh4 {[%clk 0:00:10]}  Rc3 {[%clk 0:00:35]} 32. Nc4 {[%clk 0:00:03]}  Bxd4 {[%clk 0:00:31]} 33. Nxd6 {[%clk 0:00:03]}  Bxe3+ {[%clk 0:00:30]} 34. Kh1 {[%clk 0:00:02]}  Re6 {[%clk 0:00:11]} 35. Qh8# {[%clk 0:00:02]} 1-0


[Site "https://www.chess.com"]

[Event "Titled Tuesday Blitz June 27 Late 2023"]
[White "Sainz Aguirre, Ignacio"]
[Black "MAHanif"]
[WhiteFideId "5101727"]
[WhiteElo "1976"]
[BlackElo "2317"]
[Result "0-1"]
[Round "3"]
[TimeControl "180+2"]
[Date "2023.06.27"]
[WhiteClock "0:00:09"]
[BlackClock "0:01:11"]
[Board "183"]

1. e4 {[%clk 0:02:59]}  Nf6 {[%clk 0:02:58]} 2. e5 {[%clk 0:02:59]}  Nd5 {[%clk 0:02:58]} 3. d4 {[%clk 0:02:59]}  d6 {[%clk 0:02:57]} 4. c4 {[%clk 0:02:59]}  Nb6 {[%clk 0:02:57]} 5. f4 {[%clk 0:02:58]}  c5 {[%clk 0:02:51]} 6. d5 {[%clk 0:02:55]}  g6 {[%clk 0:02:48]} 7. Nc3 {[%clk 0:02:52]}  Bg7 {[%clk 0:02:47]} 8. Qe2 {[%clk 0:02:32]}  O-O {[%clk 0:02:45]} 9. h3 {[%clk 0:02:18]}  Qc7 {[%clk 0:02:38]} 10. Nf3 {[%clk 0:02:16]}  N8d7 {[%clk 0:02:38]} 11. e6 {[%clk 0:02:15]}  fxe6 {[%clk 0:02:32]} 12. Qxe6+ {[%clk 0:02:14]}  Kh8 {[%clk 0:02:31]} 13. Ng5 {[%clk 0:01:58]}  Ne5 {[%clk 0:02:26]} 14. fxe5 {[%clk 0:01:47]}  Bxe6 {[%clk 0:02:24]} 15. Nxe6 {[%clk 0:01:47]}  Qc8 {[%clk 0:02:14]} 16. Nxf8 {[%clk 0:01:46]}  Qxf8 {[%clk 0:02:14]} 17. e6 {[%clk 0:01:46]}  Qf5 {[%clk 0:02:09]} 18. Bd2 {[%clk 0:01:41]}  Kg8 {[%clk 0:01:58]} 19. O-O-O {[%clk 0:01:36]}  Rf8 {[%clk 0:01:52]} 20. Be2 {[%clk 0:01:26]}  Qf2 {[%clk 0:01:49]} 21. Bd3 {[%clk 0:01:06]}  Qd4 {[%clk 0:01:44]} 22. Be2 {[%clk 0:00:56]}  Nxc4 {[%clk 0:01:42]} 23. Bg5 {[%clk 0:00:55]}  Qf2 {[%clk 0:01:25]} 24. Bxc4 {[%clk 0:00:49]}  Bxc3 {[%clk 0:01:16]} 25. bxc3 {[%clk 0:00:49]}  Qxg2 {[%clk 0:01:15]} 26. h4 {[%clk 0:00:45]}  Rf2 {[%clk 0:01:13]} 27. Bd3 {[%clk 0:00:22]}  Rxa2 {[%clk 0:01:12]} 28. Bd2 {[%clk 0:00:09]}  Rxd2 {[%clk 0:01:11]} 0-1


[Site "https://www.chess.com"]

[Event "Titled Tuesday Blitz June 27 Late 2023"]
[White "Gerbelli Neto, Eduardo"]
[Black "NtcPou"]
[WhiteFideId "2103281"]
[WhiteElo "2315"]
[BlackElo "1971"]
[Result "1-0"]
[Round "3"]
[TimeControl "180+2"]
[Date "2023.06.27"]
[WhiteClock "0:00:40"]
[BlackClock "0:00:00"]
[Board "184"]

1. e4 {[%clk 0:03:00]}  c6 {[%clk 0:02:59]} 2. d4 {[%clk 0:03:00]}  d5 {[%clk 0:02:58]} 3. exd5 {[%clk 0:03:01]}  cxd5 {[%clk 0:02:58]} 4. c4 {[%clk 0:03:02]}  Nf6 {[%clk 0:02:57]} 5. Nc3 {[%clk 0:03:02]}  Nc6 {[%clk 0:02:57]} 6. Nf3 {[%clk 0:03:02]}  Bg4 {[%clk 0:02:56]} 7. cxd5 {[%clk 0:03:02]}  Nxd5 {[%clk 0:02:54]} 8. Qb3 {[%clk 0:03:03]}  Bxf3 {[%clk 0:02:54]} 9. gxf3 {[%clk 0:03:04]}  e6 {[%clk 0:02:49]} 10. Qxb7 {[%clk 0:03:03]}  Nxd4 {[%clk 0:02:49]} 11. Bb5+ {[%clk 0:03:04]}  Nxb5 {[%clk 0:02:47]} 12. Qc6+ {[%clk 0:03:04]}  Ke7 {[%clk 0:02:46]} 13. Qxb5 {[%clk 0:03:04]}  Qd7 {[%clk 0:02:10]} 14. Nxd5+ {[%clk 0:03:03]}  exd5 {[%clk 0:02:04]} 15. Bg5+ {[%clk 0:03:02]}  f6 {[%clk 0:02:04]} 16. Qxd7+ {[%clk 0:02:59]}  Kxd7 {[%clk 0:02:04]} 17. Be3 {[%clk 0:02:59]}  Bd6 {[%clk 0:02:03]} 18. O-O-O {[%clk 0:02:58]}  Ke6 {[%clk 0:01:16]} 19. Rhe1 {[%clk 0:02:57]}  Rhc8+ {[%clk 0:01:11]} 20. Kb1 {[%clk 0:02:56]}  Kf7 {[%clk 0:00:52]} 21. Rxd5 {[%clk 0:02:52]}  Be5 {[%clk 0:00:50]} 22. f4 {[%clk 0:02:47]}  Bc7 {[%clk 0:00:44]} 23. Rd7+ {[%clk 0:02:42]}  Kg6 {[%clk 0:00:41]} 24. Rg1+ {[%clk 0:02:37]}  Kf5 {[%clk 0:00:42]} 25. Rgxg7 {[%clk 0:02:22]}  Bxf4 {[%clk 0:00:40]} 26. Rxh7 {[%clk 0:01:55]}  Bxe3 {[%clk 0:00:29]} 27. fxe3 {[%clk 0:01:56]}  Re8 {[%clk 0:00:29]} 28. Rde7 {[%clk 0:01:40]}  Rxe7 {[%clk 0:00:20]} 29. Rxe7 {[%clk 0:01:39]}  a5 {[%clk 0:00:19]} 30. Kc2 {[%clk 0:01:31]}  a4 {[%clk 0:00:16]} 31. Rc7 {[%clk 0:01:24]}  Re8 {[%clk 0:00:14]} 32. Kd3 {[%clk 0:01:22]}  Rd8+ {[%clk 0:00:15]} 33. Ke2 {[%clk 0:01:22]}  Rb8 {[%clk 0:00:15]} 34. Rc5+ {[%clk 0:01:20]}  Kg6 {[%clk 0:00:15]} 35. Rc2 {[%clk 0:01:20]}  Kf5 {[%clk 0:00:14]} 36. Kf3 {[%clk 0:01:20]}  Rh8 {[%clk 0:00:13]} 37. Rc5+ {[%clk 0:01:14]}  Ke6 {[%clk 0:00:13]} 38. Ra5 {[%clk 0:01:02]}  Rxh2 {[%clk 0:00:12]} 39. Rxa4 {[%clk 0:01:02]}  Rxb2 {[%clk 0:00:12]} 40. Ke4 {[%clk 0:01:02]}  Rb1 {[%clk 0:00:09]} 41. Ra6+ {[%clk 0:01:01]}  Kf7 {[%clk 0:00:10]} 42. a4 {[%clk 0:00:58]}  Rb2 {[%clk 0:00:06]} 43. a5 {[%clk 0:00:58]}  Ra2 {[%clk 0:00:05]} 44. Ra8 {[%clk 0:00:56]}  Ra3 {[%clk 0:00:05]} 45. a6 {[%clk 0:00:56]}  Kg7 {[%clk 0:00:02]} 46. a7 {[%clk 0:00:50]}  Ra5 {[%clk 0:00:02]} 47. Kd4 {[%clk 0:00:45]}  Kh7 {[%clk 0:00:03]} 48. e4 {[%clk 0:00:41]}  Kg7 {[%clk 0:00:03]} 49. Kc4 {[%clk 0:00:41]}  Ra1 {[%clk 0:00:00]} 50. Kd5 {[%clk 0:00:40]} 1-0


[Site "https://www.chess.com"]

[Event "Titled Tuesday Blitz June 27 Late 2023"]
[White "Dmitriev, Sergey"]
[Black "Perez Torres, Nabi Isaias"]
[WhiteFideId "14101785"]
[BlackFideId "5120373"]
[WhiteElo "1937"]
[BlackElo "2309"]
[Result "0-1"]
[Round "3"]
[TimeControl "180+2"]
[Date "2023.06.27"]
[WhiteClock "0:00:49"]
[BlackClock "0:01:24"]
[Board "185"]

1. d4 {[%clk 0:03:00]}  Nf6 {[%clk 0:02:59]} 2. Nf3 {[%clk 0:03:00]}  g6 {[%clk 0:02:59]} 3. Bf4 {[%clk 0:02:59]}  Bg7 {[%clk 0:03:00]} 4. h3 {[%clk 0:02:59]}  d6 {[%clk 0:03:00]} 5. Nbd2 {[%clk 0:02:59]}  O-O {[%clk 0:03:01]} 6. e3 {[%clk 0:02:58]}  c5 {[%clk 0:03:02]} 7. c3 {[%clk 0:02:57]}  a6 {[%clk 0:02:53]} 8. Be2 {[%clk 0:02:56]}  b5 {[%clk 0:02:54]} 9. O-O {[%clk 0:02:55]}  Bb7 {[%clk 0:02:54]} 10. Re1 {[%clk 0:02:54]}  Nbd7 {[%clk 0:02:55]} 11. Qc2 {[%clk 0:02:35]}  Qb6 {[%clk 0:02:54]} 12. e4 {[%clk 0:02:24]}  cxd4 {[%clk 0:02:45]} 13. cxd4 {[%clk 0:02:21]}  Rac8 {[%clk 0:02:46]} 14. Qd3 {[%clk 0:02:19]}  d5 {[%clk 0:02:38]} 15. e5 {[%clk 0:02:17]}  Ne4 {[%clk 0:02:38]} 16. Rac1 {[%clk 0:02:09]}  f6 {[%clk 0:02:26]} 17. Nxe4 {[%clk 0:01:51]}  dxe4 {[%clk 0:02:24]} 18. Qb3+ {[%clk 0:01:51]}  Kh8 {[%clk 0:01:50]} 19. Rxc8 {[%clk 0:01:47]}  Rxc8 {[%clk 0:01:40]} 20. Nd2 {[%clk 0:01:41]}  fxe5 {[%clk 0:01:36]} 21. dxe5 {[%clk 0:01:36]}  Nxe5 {[%clk 0:01:35]} 22. Bxe5 {[%clk 0:01:28]}  Bxe5 {[%clk 0:01:35]} 23. Qf7 {[%clk 0:01:27]}  e3 {[%clk 0:01:29]} 24. fxe3 {[%clk 0:01:15]}  Qxe3+ {[%clk 0:01:27]} 25. Kh1 {[%clk 0:00:56]}  Qg3 {[%clk 0:01:27]} 26. Nf1 {[%clk 0:00:54]}  Qxh3+ {[%clk 0:01:23]} 27. Nh2 {[%clk 0:00:49]}  Qxg2# {[%clk 0:01:24]} 0-1


[Site "https://www.chess.com"]

[Event "Titled Tuesday Blitz June 27 Late 2023"]
[White "Spichkin, Alexander"]
[Black "Burke, Paul"]
[WhiteFideId "4144074"]
[BlackFideId "2605767"]
[WhiteElo "2308"]
[BlackElo "1925"]
[Result "1-0"]
[Round "3"]
[TimeControl "180+2"]
[Date "2023.06.27"]
[WhiteClock "0:01:47"]
[BlackClock "0:00:00"]
[Board "186"]

1. f4 {[%clk 0:03:00]}  a6 {[%clk 0:02:57]} 2. Nf3 {[%clk 0:03:00]}  d6 {[%clk 0:02:58]} 3. e4 {[%clk 0:03:00]}  Nd7 {[%clk 0:02:57]} 4. Bc4 {[%clk 0:03:01]}  g6 {[%clk 0:02:56]} 5. Bxf7+ {[%clk 0:02:56]}  Kxf7 {[%clk 0:02:55]} 6. Ng5+ {[%clk 0:02:57]}  Kf6 {[%clk 0:02:50]} 7. d4 {[%clk 0:02:44]}  e6 {[%clk 0:02:41]} 8. e5+ {[%clk 0:02:41]}  Ke7 {[%clk 0:02:39]} 9. d5 {[%clk 0:02:35]}  Nc5 {[%clk 0:02:10]} 10. b4 {[%clk 0:02:30]}  h6 {[%clk 0:02:07]} 11. f5 {[%clk 0:02:21]}  gxf5 {[%clk 0:01:56]} 12. bxc5 {[%clk 0:02:20]}  dxe5 {[%clk 0:01:45]} 13. d6+ {[%clk 0:02:15]}  cxd6 {[%clk 0:01:45]} 14. cxd6+ {[%clk 0:02:12]}  Kf6 {[%clk 0:01:43]} 15. Nf3 {[%clk 0:02:07]}  Bxd6 {[%clk 0:01:41]} 16. Bb2 {[%clk 0:02:07]}  Qa5+ {[%clk 0:01:31]} 17. Nbd2 {[%clk 0:02:04]}  Ne7 {[%clk 0:01:17]} 18. Qe2 {[%clk 0:02:04]}  Nc6 {[%clk 0:01:16]} 19. Rb1 {[%clk 0:02:02]}  Qc5 {[%clk 0:01:05]} 20. Nb3 {[%clk 0:01:54]}  Qb5 {[%clk 0:00:52]} 21. c4 {[%clk 0:01:54]}  Qb4+ {[%clk 0:00:52]} 22. Nbd2 {[%clk 0:01:52]}  Qc5 {[%clk 0:00:37]} 23. Nb3 {[%clk 0:01:51]}  Qb4+ {[%clk 0:00:36]} 24. Nfd2 {[%clk 0:01:51]}  Bd7 {[%clk 0:00:29]} 25. O-O {[%clk 0:01:50]}  Rad8 {[%clk 0:00:19]} 26. Nf3 {[%clk 0:01:51]}  Qb6+ {[%clk 0:00:14]} 27. c5 {[%clk 0:01:50]}  Bxc5+ {[%clk 0:00:12]} 28. Nxc5 {[%clk 0:01:50]}  Qxc5+ {[%clk 0:00:12]} 29. Kh1 {[%clk 0:01:51]}  Rhe8 {[%clk 0:00:09]} 30. Rbc1 {[%clk 0:01:49]}  Qd6 {[%clk 0:00:07]} 31. Rxc6 {[%clk 0:01:48]}  Qxc6 {[%clk 0:00:00]} 32. Qxe5+ {[%clk 0:01:47]} 1-0


[Site "https://www.chess.com"]